bitfinex/quotes_SOLUSD_20241214
["timestamp","ask_amount","ask_price","bid_price","bid_amount"]
[1734173434381,8.23310167,225.1,225.04,23.776884]
[1734173435593,8.23310167,225.09,225.03,7.00329934]
[1734173437470,8.23310167,225.09,225.03,6.3369]
[1734173439280,8.23310167,225.1,225.04,0.66640658]
[1734173441469,32.93240668,225.17,225.04,0.66640658]
[1734173441470,8.23310167,225.12,225.05,25.308884]
[1734173442385,6.6615,225.18,225.05,25.308884]
[1734173442593,8.23310167,225.12,225.05,25.308884]
[1734173442974,8.23310167,225.11,225.05,25.308884]
[1734173443879,8.23310167,225.1,225.05,25.308884]
[1734173446781,6.6619,225.16,225.05,25.308884]
[1734173446973,8.23310167,225.11,225.05,25.308884]
[1734173447595,6.6619,225.16,225.05,25.308884]
[1734173447799,8.23310167,225.11,225.05,25.308884]
[1734173448170,6.6619,225.16,225.06,0.66633999]
[1734173448373,8.23310167,225.12,225.06,0.66633999]
[1734173448998,8.23310167,225.11,225.05,25.308884]
[1734173449789,8.23310167,225.11,225.05,1.532]
[1734173449977,8.23310167,225.09,225.05,1.532]
[1734173455596,8.23310167,225.09,225.02,0.66643514]
[1734173455997,8.23310167,225.09,225.01,20.0]
[1734173456185,8.23310167,225.06,225.0,1.5209]
[1734173457016,8.23310167,225.07,225.0,1.5209]
[1734173458386,8.23310167,225.07,225.0,9.75400167]
[1734173459516,8.23310167,225.09,225.02,8.23310167]
[1734173459678,8.23310167,225.08,225.01,8.89959409]
[1734173459883,8.23310167,225.08,225.01,0.66649242]
[1734173461315,8.23310167,225.09,225.02,8.23310167]
[1734173461529,8.23310167,225.09,225.03,24.44328957]
[1734173461914,6.6628,225.13,225.01,43.902374]
[1734173462115,8.23310167,225.09,225.03,23.776884]
[1734173463203,8.23310167,225.1,225.03,23.776884]
[1734173465309,8.23310167,225.1,225.03,24.44328287]
[1734173466022,8.23310167,225.1,225.03,32.67638454]
[1734173466343,6.6628,225.13,225.03,32.67638454]
[1734173466499,8.23310167,225.1,225.03,32.67638454]
[1734173466920,8.23310167,225.11,225.03,32.67638454]
[1734173467495,8.23310167,225.11,225.05,23.776884]
[1734173467701,8.23310167,225.11,225.05,24.44320747]
[1734173468002,8.23310167,225.12,225.06,1.604]
[1734173471118,8.23310167,225.11,225.06,1.604]
[1734173477151,8.23310167,225.1,225.06,1.604]
[1734173480956,8.23310167,225.12,225.06,1.604]
[1734173482042,6.6618,225.17,225.06,1.604]
[1734173482353,8.23310167,225.12,225.06,1.604]
[1734173484463,6.6618,225.17,225.06,1.604]
[1734173484759,8.23310167,225.13,225.06,1.604]
[1734173488539,6.6618,225.17,225.07,24.44317495]
[1734173488754,8.23310167,225.14,225.07,24.44317495]
[1734173493039,8.23310167,225.13,225.07,24.44317495]
[1734173494761,8.23310167,225.13,225.07,32.67627662]
[1734173495059,8.23310167,225.12,225.07,24.44317495]
[1734173495669,8.23310167,225.12,225.07,23.776884]
[1734173498651,8.23310167,225.13,225.07,23.776884]
[1734173499848,8.23310167,225.12,225.07,23.776884]
[1734173503949,8.23310167,225.13,225.07,23.776884]
[1734173505669,8.23310167,225.15,225.08,0.66628584]
[1734173506580,8.23310167,225.15,225.09,23.776884]
[1734173509279,8.23310167,225.14,225.09,23.776884]
[1734173512777,8.23310167,225.15,225.09,23.776884]
[1734173515556,8.23310167,225.15,225.09,0.12549]
[1734173516994,8.23310167,225.15,225.08,23.776884]
[1734173517661,8.23310167,225.15,225.06,2.27024799]
[1734173517862,8.23310167,225.13,225.06,2.27024799]
[1734173518077,8.23310167,225.13,225.06,1.604]
[1734173518382,8.23310167,225.11,225.06,1.604]
[1734173519161,8.23310167,225.12,225.06,1.604]
[1734173522909,6.6605,225.21,225.11,8.23310167]
[1734173523185,8.23310167,225.21,225.13,8.23310167]
[1734173523402,8.23310167,225.18,225.11,8.23310167]
[1734173524367,8.23310167,225.18,225.11,0.12549]
[1734173524560,8.23310167,225.18,225.11,8.35859167]
[1734173525179,8.23310167,225.19,225.12,8.23310167]
[1734173526277,8.23310167,225.2,225.13,8.23310167]
[1734173527579,6.6594,225.25,225.13,8.23310167]
[1734173527781,8.23310167,225.2,225.13,8.23310167]
[1734173527988,8.23310167,225.21,225.13,8.23310167]
[1734173528585,6.6594,225.25,225.14,8.35859167]
[1734173528786,8.23310167,225.21,225.14,8.35859167]
[1734173531410,8.23310167,225.2,225.13,1.5215]
[1734173531707,8.23310167,225.2,225.13,9.75460167]
[1734173532106,6.6594,225.25,225.14,8.23310167]
[1734173532276,8.23310167,225.21,225.14,8.23310167]
[1734173533675,8.23310167,225.21,225.13,1.5215]
[1734173533676,8.23310167,225.21,225.15,8.23310167]
[1734173534999,8.23310167,225.22,225.15,8.23310167]
[1734173540991,8.23310167,225.22,225.13,1.5215]
[1734173541194,8.23310167,225.22,225.15,8.23310167]
[1734173541390,8.23310167,225.22,225.14,8.23310167]
[1734173541591,8.23310167,225.21,225.14,8.23310167]
[1734173542890,8.23310167,225.21,225.13,1.5215]
[1734173543098,8.23310167,225.21,225.14,8.23310167]
[1734173544885,8.23310167,225.19,225.13,1.5215]
[1734173545425,8.23310167,225.17,225.09,0.12549]
[1734173545628,8.23310167,225.17,225.1,8.23310167]
[1734173550105,8.23310167,225.18,225.11,8.23310167]
[1734173550499,6.6607,225.2,225.11,8.23310167]
[1734173550701,8.23310167,225.19,225.12,8.23310167]
[1734173553610,8.23310167,225.19,225.13,8.23310167]
[1734173555720,14.89380167,225.2,225.13,8.23310167]
[1734173557020,6.6607,225.2,225.14,8.23310167]
[1734173559205,6.6607,225.2,225.09,0.12549]
[1734173559426,6.6607,225.2,225.14,8.23310167]
[1734173562215,6.6607,225.2,225.13,8.23310167]
[1734173562420,8.23310167,225.19,225.12,8.23310167]
[1734173563807,6.6592,225.25,225.08,1.6589]
[1734173563808,8.23310167,225.17,225.08,1.6589]
[1734173564010,8.23310167,225.16,225.09,8.23310167]
[1734173568336,8.23310167,225.17,225.1,8.23310167]
[1734173570859,8.23310167,225.18,225.11,8.23310167]
[1734173573015,8.23310167,225.18,225.1,8.23310167]
[1734173573416,8.23310167,225.18,225.11,8.23310167]
[1734173574933,6.6612,225.19,225.11,8.23310167]
[1734173575135,6.6612,225.19,225.13,8.23310167]
[1734173581830,14.89430167,225.19,225.12,8.23310167]
[1734173582029,6.6612,225.19,225.09,0.12549]
[1734173582231,6.6612,225.19,225.12,8.23310167]
[1734173582839,12.8026,225.23,225.13,8.23310167]
[1734173583056,8.23310167,225.21,225.14,8.23310167]
[1734173587054,8.23310167,225.2,225.09,24.027864]
[1734173587257,8.23310167,225.2,225.13,8.23310167]
[1734173588542,8.23310167,225.2,225.09,24.027864]
[1734173588734,8.23310167,225.2,225.13,8.23310167]
[1734173592337,12.8026,225.23,225.14,8.23310167]
[1734173592644,8.23310167,225.22,225.15,8.23310167]
[1734173593326,8.23310167,225.22,225.09,24.027864]
[1734173593559,8.23310167,225.21,225.09,24.027864]
[1734173593730,8.23310167,225.21,225.14,8.23310167]
[1734173601235,8.23310167,225.22,225.14,8.23310167]
[1734173603445,8.23310167,225.22,225.1,0.66612713]
[1734173603446,21.03570167,225.23,225.15,8.23310167]
[1734173607051,12.8026,225.23,225.15,8.23310167]
[1734173607268,21.03570167,225.23,225.15,8.23310167]
[1734173616367,8.23310167,225.22,225.15,8.23310167]
[1734173618591,8.23310167,225.22,225.13,0.12549]
[1734173618901,8.23310167,225.22,225.15,8.23310167]
[1734173619901,8.23310167,225.21,225.14,8.23310167]
[1734173624197,8.23310167,225.19,225.08,1.6589]
[1734173624398,8.23310167,225.17,225.09,0.12549]
[1734173624587,8.23310167,225.17,225.1,8.23310167]
[1734173631792,8.23310167,225.17,225.11,8.23310167]
[1734173632406,9.89420167,225.19,225.12,8.23310167]
[1734173637408,1.6611,225.19,225.13,8.23310167]
[1734173639526,9.89420167,225.19,225.12,8.23310167]
[1734173643013,1.6611,225.19,225.12,8.23310167]
[1734173644213,1.6611,225.19,225.13,8.23310167]
[1734173651438,1.6611,225.19,225.12,8.23310167]
[1734173670645,6.1426,225.23,225.14,8.23310167]
[1734173670953,14.37570167,225.23,225.15,8.23310167]
[1734173671657,6.1426,225.23,225.16,8.23310167]
[1734173671846,14.37570167,225.23,225.16,8.23310167]
[1734173672350,6.1426,225.23,225.17,8.23310167]
[1734173673248,9.76520167,225.24,225.17,8.23310167]
[1734173673943,9.76520167,225.24,225.16,8.23310167]
[1734173673944,8.23310167,225.23,225.16,8.23310167]
[1734173674958,9.76520167,225.24,225.17,8.23310167]
[1734173675149,8.23310167,225.23,225.12,44.027864]
[1734173675476,8.23310167,225.23,225.15,8.23310167]
[1734173675974,8.23310167,225.23,225.12,44.027864]
[1734173676270,8.23310167,225.23,225.15,8.23310167]
[1734173676640,1.5321,225.24,225.15,8.23310167]
[1734173676844,8.23310167,225.22,225.14,8.23310167]
[1734173678160,8.23310167,225.22,225.15,8.23310167]
[1734173678775,8.23310167,225.21,225.11,0.25098]
[1734173678979,8.23310167,225.21,225.14,8.23310167]
[1734173679270,8.23310167,225.22,225.14,8.23310167]
[1734173679643,8.23310167,225.2,225.09,1.585]
[1734173679866,6.6598,225.23,225.09,1.585]
[1734173679867,8.23310167,225.19,225.09,21.585]
[1734173680165,8.23310167,225.19,225.12,8.23310167]
[1734173683049,8.23310167,225.2,225.12,8.23310167]
[1734173684655,8.23310167,225.19,225.12,8.23310167]
[1734173688456,8.23310167,225.17,225.08,20.0]
[1734173688780,8.23310167,225.17,225.1,8.23310167]
[1734173689378,8.23310167,225.18,225.11,8.23310167]
[1734173689956,8.23310167,225.19,225.12,8.23310167]
[1734173692671,6.6608,225.2,225.12,8.23310167]
[1734173692887,8.23310167,225.18,225.11,8.23310167]
[1734173693693,8.23310167,225.18,225.08,24.027864]
[1734173693896,8.23310167,225.18,225.11,8.23310167]
[1734173697801,8.23310167,225.18,225.08,24.027864]
[1734173698238,8.23310167,225.18,225.1,8.23310167]
[1734173699371,8.23310167,225.16,225.06,20.0]
[1734173699574,8.23310167,225.15,225.08,8.23310167]
[1734173700478,1.6045,225.18,224.99,227.40101123]
[1734173700479,8.23310167,225.13,224.99,227.40101123]
[1734173700797,8.23310167,225.13,225.06,8.23310167]
[1734173703074,6.5629,225.16,225.04,8.23310167]
[1734173703075,8.23310167,225.11,225.04,8.23310167]
[1734173703274,8.23310167,225.11,225.01,0.6663961]
[1734173703493,8.23310167,225.11,225.02,0.12549]
[1734173703677,8.23310167,225.11,225.04,8.23310167]
[1734173704479,16.40050167,225.1,224.98,6.15612126]
[1734173704678,8.23310167,225.09,225.03,8.23310167]
[1734173705193,8.23310167,225.09,225.02,8.23310167]
[1734173705568,8.23310167,225.09,224.96,0.66653834]
[1734173705897,8.23310167,225.07,225.0,8.23310167]
[1734173707574,8.23310167,225.06,225.0,8.23310167]
[1734173708295,8.23310167,225.03,224.97,8.23310167]
[1734173708498,8.23310167,225.03,224.96,8.23310167]
[1734173708794,8.23310167,225.03,224.97,8.23310167]
[1734173708999,8.23310167,225.03,224.92,0.12549]
[1734173709201,8.23310167,225.03,224.97,8.23310167]
[1734173709496,8.23310167,225.02,224.96,8.23310167]
[1734173710078,16.40050167,225.02,224.95,8.23310167]
[1734173710279,16.40050167,225.02,224.92,0.12549]
[1734173710601,8.23310167,225.01,224.94,8.23310167]
[1734173711676,8.23310167,225.01,224.95,8.23310167]
[1734173711893,1.6045,225.02,224.98,8.23310167]
[1734173712983,1.6045,225.02,224.97,8.23310167]
[1734173713383,1.6045,225.02,224.92,0.79223861]
[1734173713583,1.6045,225.02,224.97,8.23310167]
[1734173714175,1.6045,225.02,224.96,8.23310167]
[1734173715577,8.23310167,225.01,224.95,8.23310167]
[1734173715782,8.23310167,225.0,224.94,8.23310167]
[1734173716192,8.23310167,224.99,224.9,20.0]
[1734173716390,8.23310167,224.99,224.93,8.23310167]
[1734173716601,8.23310167,225.0,224.94,8.23310167]
[1734173720605,1.6045,225.02,224.91,0.79224592]
[1734173720606,8.23310167,225.01,224.95,8.23310167]
[1734173722816,1.6045,225.02,224.95,8.23310167]
[1734173723012,8.23310167,225.01,224.95,8.23310167]
[1734173723430,6.5629,225.06,224.95,8.23310167]
[1734173723431,6.5629,225.06,225.0,8.23310167]
[1734173723722,8.2643,225.07,225.01,8.23310167]
[1734173724497,6.6647,225.07,225.02,8.23310167]
[1734173724902,6.6647,225.07,225.01,8.23310167]
[1734173725495,14.89780167,225.07,225.01,8.23310167]
[1734173727897,6.6647,225.07,225.01,8.23310167]
[1734173728294,8.23310167,225.06,225.0,8.23310167]
[1734173729905,8.23310167,225.06,224.99,8.23310167]
[1734173735915,8.23310167,225.05,224.99,8.23310167]
[1734173738041,8.23310167,225.01,224.94,8.23310167]
[1734173740249,8.23310167,225.02,224.95,8.23310167]
[1734173740433,21.50640167,225.04,224.98,8.23310167]
[1734173740839,13.2733,225.04,224.98,8.23310167]
[1734173742961,8.23310167,225.03,224.97,8.23310167]
[1734173743310,8.23310167,225.02,224.95,8.23310167]
[1734173746539,8.23310167,225.01,224.93,0.12549]
[1734173746737,8.23310167,225.01,224.95,8.23310167]
[1734173749437,8.23310167,225.01,224.92,0.66671666]
[1734173749637,8.23310167,225.01,224.94,8.23310167]
[1734173750454,8.23310167,225.01,224.95,8.23310167]
[1734173753267,8.23310167,225.02,224.95,8.23310167]
[1734173755552,13.2733,225.04,224.95,8.23310167]
[1734173755753,8.23310167,225.03,224.96,8.23310167]
[1734173757164,8.23310167,225.03,224.93,0.12549]
[1734173757349,8.23310167,225.03,224.95,8.23310167]
[1734173758286,8.23310167,225.02,224.95,8.23310167]
[1734173761761,8.23310167,225.03,224.95,8.23310167]
[1734173762867,13.2733,225.04,224.94,8.23310167]
[1734173763069,8.23310167,225.02,224.94,8.23310167]
[1734173766568,8.23310167,225.02,224.95,8.23310167]
[1734173767782,13.2733,225.04,224.96,8.23310167]
[1734173767956,8.23310167,225.03,224.96,8.23310167]
[1734173776182,8.23310167,225.03,224.93,0.12549]
[1734173776183,8.23310167,225.03,224.95,8.23310167]
[1734173786983,21.50640167,225.04,224.96,8.23310167]
[1734173787191,1.5467,225.05,224.98,8.23310167]
[1734173787371,21.5467,225.05,224.99,8.23310167]
[1734173787695,29.77980167,225.05,224.98,8.23310167]
[1734173792180,29.77980167,225.05,224.99,8.23310167]
[1734173792181,21.5467,225.05,224.99,8.23310167]
[1734173792588,29.77980167,225.05,224.98,8.23310167]
[1734173797607,29.77980167,225.05,224.96,0.12549]
[1734173797608,8.23310167,225.03,224.96,8.23310167]
[1734173798101,8.23310167,225.02,224.95,8.23310167]
[1734173801812,8.23310167,225.01,224.95,8.23310167]
[1734173804126,8.23310167,225.01,224.92,0.66672851]
[1734173804412,8.23310167,225.0,224.91,20.0]
[1734173804607,8.23310167,225.0,224.93,8.23310167]
[1734173809124,8.23310167,225.0,224.94,8.23310167]
[1734173810434,8.23310167,225.01,224.95,8.23310167]
[1734173813612,14.89920167,225.02,224.95,8.23310167]
[1734173820736,6.5221,225.03,224.97,8.23310167]
[1734173825344,29.77980167,225.05,224.98,8.23310167]
[1734173829754,29.77980167,225.05,224.97,8.23310167]
[1734173830358,8.23310167,225.04,224.97,8.23310167]
[1734173830746,29.77980167,225.05,224.98,8.23310167]
[1734173833553,8.23310167,225.04,224.97,8.23310167]
[1734173833938,8.23310167,225.03,224.96,8.23310167]
[1734173836246,8.23310167,225.03,224.95,0.79210918]
[1734173836455,8.23310167,225.03,224.96,8.23310167]
[1734173842088,8.23310167,225.02,224.95,8.23310167]
[1734173842261,6.6654,225.04,224.91,20.0]
[1734173842262,8.23310167,225.0,224.91,20.0]
[1734173842469,8.23310167,225.0,224.9,0.66670595]
[1734173842470,8.23310167,224.99,224.9,0.66670595]
[1734173842689,8.23310167,224.99,224.92,8.23310167]
[1734173844377,6.6665,225.01,224.92,8.23310167]
[1734173844558,8.23310167,224.99,224.93,8.23310167]
[1734173846486,8.23310167,224.99,224.92,8.23310167]
[1734173846658,8.23310167,224.97,224.87,13.44817078]
[1734173846859,8.23310167,224.96,224.89,8.23310167]
[1734173848699,8.23310167,224.96,224.88,0.12549]
[1734173848988,8.23310167,224.96,224.9,8.23310167]
[1734173854281,8.23310167,224.96,224.87,12.78137682]
[1734173854482,6.6673,224.98,224.91,8.23310167]
[1734173854694,8.23310167,224.97,224.91,8.23310167]
[1734173856082,8.23310167,224.97,224.88,0.12549]
[1734173856480,8.23310167,224.97,224.91,8.23310167]
[1734173856807,8.23310167,224.96,224.9,8.23310167]
[1734173858191,8.23310167,224.97,224.9,8.23310167]
[1734173859905,14.90040167,224.98,224.91,8.23310167]
[1734173861578,1.6256,224.99,224.94,8.23310167]
[1734173862267,9.85870167,224.99,224.93,8.23310167]
[1734173865501,9.85870167,224.99,224.92,8.23310167]
[1734173871390,9.85870167,224.99,224.89,0.25098]
[1734173871695,9.85870167,224.99,224.92,8.23310167]
[1734173872126,8.23310167,224.98,224.91,8.23310167]
[1734173874105,9.85870167,224.99,224.92,8.23310167]
[1734173878237,8.23310167,224.98,224.91,8.23310167]
[1734173879600,8.23310167,224.98,224.89,0.79228843]
[1734173879803,8.23310167,224.97,224.89,0.79228843]
[1734173880035,8.23310167,224.97,224.91,0.12549]
[1734173880646,8.23310167,224.98,224.91,8.35859167]
[1734173880949,8.23310167,224.98,224.91,8.23310167]
[1734173882236,8.23310167,224.97,224.89,0.66679835]
[1734173882442,8.23310167,224.96,224.89,0.12549]
[1734173884421,8.23310167,224.96,224.89,8.23310167]
[1734173888347,8.23310167,224.96,224.87,0.6668423]
[1734173888348,8.23310167,224.96,224.9,8.23310167]
[1734173893060,8.23310167,224.96,224.89,8.23310167]
[1734173898562,8.23310167,224.97,224.9,8.23310167]
[1734173898751,1.6256,224.99,224.93,8.23310167]
[1734173898942,9.85870167,224.99,224.93,8.23310167]
[1734173899141,9.85870167,224.99,224.91,8.35859167]
[1734173899142,8.23310167,224.98,224.91,8.35859167]
[1734173900553,1.6256,224.99,224.91,8.35859167]
[1734173900759,1.6256,224.99,224.89,20.66682068]
[1734173900760,1.6256,224.99,224.93,8.23310167]
[1734173900989,9.85870167,224.99,224.93,8.23310167]
[1734173901366,8.23310167,224.98,224.92,8.23310167]
[1734173902361,9.85870167,224.99,224.92,8.23310167]
[1734173903273,12.8663,225.03,224.93,8.23310167]
[1734173903481,12.8663,225.03,224.94,8.23310167]
[1734173903658,8.23310167,225.0,224.94,8.23310167]
[1734173904062,8.23310167,225.0,224.93,0.12549]
[1734173904263,8.23310167,224.99,224.93,0.12549]
[1734173905672,8.23310167,225.0,224.93,8.23310167]
[1734173906474,8.23310167,225.0,224.94,8.23310167]
[1734173907375,8.23310167,225.0,224.93,8.23310167]
[1734173908079,8.23310167,225.0,224.85,6.95801123]
[1734173908080,8.23310167,224.96,224.85,6.95801123]
[1734173908378,8.23310167,224.89,224.82,7.04336502]
[1734173908672,8.23310167,224.88,224.82,8.31845546]
[1734173909258,8.23310167,224.89,224.82,8.31845546]
[1734173913299,8.23310167,224.88,224.82,0.08535379]
[1734173917267,8.23310167,224.89,224.82,8.31845546]
[1734173918772,8.23310167,224.88,224.82,0.08535379]
[1734173920882,8.23310167,224.91,224.84,8.23310167]
[1734173921275,8.23310167,224.9,224.83,8.23310167]
[1734173923984,8.23310167,224.92,224.85,8.23310167]
[1734173924163,11.77193939,225.01,224.87,8.23310167]
[1734173924164,50.444584,224.97,224.87,8.23310167]
[1734173924369,8.23310167,224.93,224.87,8.23310167]
[1734173926471,8.23310167,224.93,224.86,8.23310167]
[1734173926668,8.23310167,224.92,224.85,8.23310167]
[1734173926865,50.444584,224.97,224.85,8.23310167]
[1734173927264,8.23310167,224.92,224.85,8.23310167]
[1734173931302,8.23310167,224.93,224.86,8.23310167]
[1734173933786,8.23310167,224.92,224.83,0.25098]
[1734173934085,8.23310167,224.92,224.85,8.23310167]
[1734173934407,8.23310167,224.93,224.86,8.23310167]
[1734173937783,8.23310167,224.93,224.83,0.25098]
[1734173937987,8.23310167,224.92,224.85,8.23310167]
[1734173938877,50.444584,224.97,224.84,8.23310167]
[1734173938878,8.23310167,224.91,224.84,8.23310167]
[1734173940699,8.23310167,224.92,224.85,8.23310167]
[1734173942992,8.23310167,224.91,224.82,0.08535379]
[1734173943191,8.23310167,224.92,224.85,8.23310167]
[1734173947818,8.23310167,224.92,224.82,0.08535379]
[1734173947997,8.23310167,224.9,224.83,8.23310167]
[1734173948406,8.23310167,224.9,224.82,8.31845546]
[1734173953502,8.23310167,224.9,224.83,8.23310167]
[1734173956802,8.23310167,224.9,224.82,0.08535379]
[1734173957003,8.23310167,224.9,224.83,8.23310167]
[1734173957612,8.23310167,224.9,224.82,0.08535379]
[1734173957613,8.23310167,224.88,224.82,0.08535379]
[1734173957819,8.23310167,224.87,224.82,0.08535379]
[1734173959422,8.23310167,224.85,224.82,0.08535379]
[1734173962425,8.23310167,224.86,224.82,0.08535379]
[1734173963730,8.23310167,224.87,224.82,0.08535379]
[1734173964816,8.23310167,224.89,224.82,8.31845546]
[1734173965717,8.23310167,224.9,224.83,8.23310167]
[1734173966314,6.6695,224.91,224.83,8.23310167]
[1734173966720,8.23310167,224.89,224.83,8.23310167]
[1734173968018,8.23310167,224.89,224.82,8.31845546]
[1734173969430,8.23310167,224.88,224.82,0.08535379]
[1734173969828,8.23310167,224.89,224.82,8.31845546]
[1734173972913,6.6695,224.91,224.82,8.31845546]
[1734173972914,8.23310167,224.9,224.82,8.31845546]
[1734173973736,8.23310167,224.9,224.82,0.08535379]
[1734173973936,8.23310167,224.9,224.82,8.31845546]
[1734173974938,6.6695,224.91,224.82,8.31845546]
[1734173974939,8.23310167,224.89,224.82,8.31845546]
[1734173985645,8.23310167,224.89,224.82,0.08535379]
[1734173985851,8.23310167,224.89,224.82,0.35535379]
[1734173990031,8.23310167,224.89,224.82,8.58845546]
[1734173995155,8.23310167,224.89,224.82,0.35535379]
[1734173995354,8.23310167,224.89,224.82,0.08535379]
[1734173998153,8.23310167,224.87,224.82,0.08535379]
[1734173998656,8.23310167,224.86,224.82,0.08535379]
[1734173999447,8.23310167,224.87,224.82,0.08535379]
[1734174001742,8.23310167,224.86,224.82,0.08535379]
[1734174004340,8.23310167,224.83,224.82,0.08535379]
[1734174009839,32.13547567,224.83,224.82,5.379e-05]
[1734174010745,32.26096567,224.83,224.82,5.379e-05]
[1734174020069,42.04476767,224.83,224.82,5.379e-05]
[1734174020465,41.91927767,224.83,224.82,5.379e-05]
[1734174020668,32.00998567,224.83,224.82,5.379e-05]
[1734174022250,32.26096567,224.83,224.82,5.379e-05]
[1734174023257,6.74742961,224.87,224.82,5.379e-05]
[1734174023258,6.6705,224.87,224.82,5.379e-05]
[1734174023458,8.23310167,224.83,224.82,5.379e-05]
[1734174024454,20.0,224.84,224.82,5.379e-05]
[1734174024655,8.23310167,224.83,224.82,5.379e-05]
[1734174030263,8.23310167,224.84,224.82,5.379e-05]
[1734174036368,6.79449,224.92,224.82,5.379e-05]
[1734174036592,20.0,224.88,224.82,5.379e-05]
[1734174036768,8.23310167,224.85,224.82,5.379e-05]
[1734174037896,8.23310167,224.84,224.82,5.379e-05]
[1734174040577,6.67,224.89,224.82,5.379e-05]
[1734174040987,8.23310167,224.88,224.82,5.379e-05]
[1734174041378,6.6689,224.93,224.83,1.6655]
[1734174041777,8.23310167,224.89,224.83,1.6655]
[1734174041978,8.23310167,224.9,224.83,9.89860167]
[1734174043689,8.23310167,224.91,224.84,8.23310167]
[1734174043996,8.23310167,224.9,224.84,8.23310167]
[1734174044498,6.6689,224.93,224.84,8.23310167]
[1734174044699,8.23310167,224.9,224.84,8.23310167]
[1734174044898,6.6689,224.93,224.84,8.23310167]
[1734174045101,8.23310167,224.9,224.84,8.23310167]
[1734174045979,6.6689,224.93,224.84,8.23310167]
[1734174046195,8.23310167,224.91,224.84,8.23310167]
[1734174046391,8.23310167,224.92,224.85,8.23310167]
[1734174047128,6.6676,224.97,224.87,8.23310167]
[1734174047288,8.23310167,224.95,224.89,8.23310167]
[1734174047592,8.23310167,224.98,224.91,8.23310167]
[1734174048085,8.23310167,224.98,224.92,8.23310167]
[1734174050074,8.23310167,225.0,224.93,8.23310167]
[1734174050897,8.23310167,224.99,224.92,8.23310167]
[1734174051197,8.23310167,224.98,224.91,8.23310167]
[1734174055497,26.6662,225.02,224.92,8.23310167]
[1734174055691,8.23310167,224.99,224.92,8.23310167]
[1734174057000,8.23310167,224.98,224.89,1.6398]
[1734174057203,8.23310167,224.96,224.89,1.6398]
[1734174057415,8.23310167,224.96,224.89,9.87290167]
[1734174058910,8.23310167,224.97,224.9,8.23310167]
[1734174059082,8.23310167,224.98,224.91,8.23310167]
[1734174059282,20.0,225.02,224.93,8.23310167]
[1734174059480,8.23310167,225.0,224.93,8.23310167]
[1734174060310,8.23310167,225.0,224.89,1.6398]
[1734174060311,8.23310167,224.99,224.91,8.23310167]
[1734174060519,8.23310167,224.98,224.91,8.23310167]
[1734174061290,8.23310167,224.96,224.89,9.87290167]
[1734174062810,8.23310167,224.97,224.9,8.23310167]
[1734174062993,8.23310167,224.98,224.91,8.23310167]
[1734174063911,8.23310167,224.97,224.9,8.23310167]
[1734174069299,8.23310167,224.97,224.93,0.27]
[1734174070712,8.23310167,224.99,224.93,0.27]
[1734174070924,6.6663,225.01,224.93,0.27]
[1734174071094,8.23310167,224.99,224.93,0.27]
[1734174071300,8.23310167,224.99,224.91,0.27]
[1734174071500,20.0,225.02,224.91,0.27]
[1734174071819,117.11113045,225.06,224.91,0.27]
[1734174071820,8.23310167,225.0,224.93,8.23310167]
[1734174072201,8.23310167,225.02,224.95,8.23310167]
[1734174074415,8.23310167,225.01,224.94,8.23310167]
[1734174077508,6.6654,225.05,224.92,1.5514]
[1734174077509,8.23310167,225.0,224.93,20.0]
[1734174077710,8.23310167,224.99,224.93,20.0]
[1734174078124,8.23310167,225.0,224.93,28.23310167]
[1734174079624,8.23310167,225.01,224.94,8.23310167]
[1734174080208,8.23310167,225.01,224.93,20.0]
[1734174080209,8.23310167,225.01,224.93,28.23310167]
[1734174080532,8.23310167,225.0,224.93,28.23310167]
[1734174081116,8.23310167,225.01,224.94,8.23310167]
[1734174083032,8.23310167,225.02,224.95,8.23310167]
[1734174083206,6.6654,225.05,224.95,8.23310167]
[1734174083408,2.61323855,225.08,224.97,8.23310167]
[1734174083828,8.23310167,225.04,224.97,8.23310167]
[1734174084940,8.23310167,225.06,224.99,9.78180167]
[1734174086027,6.6642,225.09,225.01,8.23310167]
[1734174086028,8.23310167,225.08,225.01,8.23310167]
[1734174086546,6.663,225.13,225.02,8.23310167]
[1734174086831,8.23310167,225.09,225.02,8.23310167]
[1734174087043,6.663,225.13,225.02,8.23310167]
[1734174087248,8.23310167,225.09,225.02,8.23310167]
[1734174087831,8.23310167,225.09,225.01,6.5882]
[1734174088033,8.23310167,225.09,225.02,8.23310167]
[1734174093213,8.23310167,225.1,225.03,8.23310167]
[1734174094333,6.663,225.13,225.04,8.23310167]
[1734174094718,8.23310167,225.11,225.04,8.23310167]
[1734174095328,6.663,225.13,225.05,8.23310167]
[1734174095541,8.23310167,225.12,225.06,1.5436]
[1734174096335,8.23310167,225.13,225.06,9.77670167]
[1734174096937,8.23310167,225.12,225.06,1.5436]
[1734174097243,8.23310167,225.1,225.06,1.5436]
[1734174100020,8.23310167,225.11,225.06,1.5436]